{"text_format":"1","workbook":"xlsx","n_sheets":3,"sheets":["FORMATOPEDIDO2.0","Resumen","menu"],"not_rendered":{"charts":0,"images":10,"macros":1,"external_links":0,"defined_names":3,"comments":1,"pivot_tables":0},"unopened":[],"bounds":{"document_bytes":16777216,"sheet_cells":100000,"rows_first":2000,"rows_last":500,"rows_between":2000,"halvings":0,"cell_chars":16384,"cell_head_chars":4096},"cells_cut":0,"cells_raw":0,"read":"whole","date_system":"1900"}

{"sheet":"FORMATOPEDIDO2.0","index":0,"n_rows":76,"n_cols":10,"rows_kept":76,"cut":false,"hidden":false,"merged":[[65,9,65,10],[17,9,17,10],[41,9,41,10],[24,10,25,10],[29,7,29,8],[29,9,29,10],[41,7,41,8],[15,1,25,8],[2,0,2,10],[36,2,37,2],[36,4,37,4],[36,6,37,6],[36,8,37,8],[36,10,37,10],[3,0,3,10],[5,1,5,2],[60,10,61,10],[53,1,53,2],[53,3,53,4],[53,5,53,6],[48,6,49,6],[48,2,49,2],[48,4,49,4],[53,7,53,8],[53,9,53,10],[65,1,65,2],[6,1,6,2],[6,3,6,4],[4,0,4,2],[5,3,5,8],[6,6,6,8],[60,2,61,2],[60,4,61,4],[60,6,61,6],[60,8,61,8],[65,3,65,4],[65,5,65,6],[41,5,41,6],[65,7,65,8],[29,1,29,2],[29,3,29,4],[29,5,29,6],[41,1,41,2],[41,3,41,4],[7,0,7,2],[8,0,8,2],[9,1,9,2],[8,3,8,6],[9,3,9,6],[0,3,1,7],[78,0,81,9],[109,0,109,10],[8,8,8,9],[9,8,9,9],[11,0,11,10],[105,0,105,10],[106,0,106,10],[72,2,73,2],[72,4,73,4],[72,6,73,6],[72,8,73,8],[72,10,73,10],[48,8,49,8],[48,10,49,10],[77,0,77,1]]}
[null,null,null,"HAPPY LUNCHES SERVICE SAC \nCOLEGIO SANTA MARIA\nPRIMARIA"]
[]
["BCP CUENTA CORRIENTE: 194189468-2-000                                                         CODIGO INTERBANCARIO BCP: 002 194 00189468 2000 90           \nBBVA CUENTA CORRIENTE: 0011-0149-0100033241-29                                           CODIGO INTERBANCARIO BBVA: 011 - 149 - 000100033241 - 29  "]
["FAVOR ENVIAR VOUCHER O TRANSFERENCIA ELECTRÓNICA A NUESTRO E-MAIL UNA VEZ REALIZADO EL ABONO EN NUESTRA CUENTA. GRACIAS POR SU COLABORACIÓN."]
[" DATOS DEL PADRE O APODERADO :"]
[null,"NOMBRES Y APELLIDOS:"]
[null,"TELÉFONO:","TELEFONO:",null,null,"CORREO ELECTRÓNICO:"]
["DATOS DEL ALUMNO                           :"]
["NOMBRES :",null,null,null,null,null,null,"GRADO Y SECCIÓN :"]
[null,"APELLIDOS :",null,null,null,null,null,"ALERGIAS :"]
[]
["IMPORTANTE: ES NECESARIO QUE LOS DATOS SOLICITADOS SEAN LLENADOS DE FORMA CORRECTA TANTO DEL TUTOR COMO DEL ALUMNO(A) . ELEGIR UNICAMENTE  LA OPCIÓN  EN LA FECHA  QUE DESEA EL SERVICIO,DE NO NECESITAR EL SERVICIO UN DÍA NO SELECCIONAR NINGUNA OPCIÓN ESE DÍA . YA QUE EL PROGRAMA CALCULARÁ LA CANTIDAD DE ALMUERZOS ELEGIDOS POR ALUMNO ASÍ COMO EL TOTAL A DEPOSITAR.PARA  REALIZAR  EL PEDIDO PARA UN ALUMNO MÁS DIRIGIRSE A LA SIGUIENTE HOJA ELECTRÓNICA.\nEN CADA HOJA ELECTRÓNICA DEBE DE HABER SOLO UN ALUMNO.\nNO RE-ENVIAR SIN HABER GUARDADO EL DOCUMENTO DESPUÉS DE HECHA LA SELECCIÓN"]
[]
[]
["Opción","Lunes",null,"Martes",null,"Miércoles",null,"Jueves",null,"Viernes"]
[null,null,null,null,null,null,null,null,null,{"$f":"menu!A39","v":"1 de Abril"}]
[]
["Entrada",null,null,null,null,null,null,null,null,{"$f":"menu!C39","v":"WANTAN CON TAMARINDO "}]
["A",null,null,null,null,null,null,null,null,{"$f":"menu!C40","v":"ARROZ CHAUFA DE POLLO"}]
["B",null,null,null,null,null,null,null,null,{"$f":"menu!C41","v":"HAMBURGUESA AL PLATO CON ARROZ PRIMAVERA"}]
["C",null,null,null,null,null,null,null,null,{"$f":"menu!C42","v":"POLLO A LA PLANCHA CON ARROZ PRIMAVERA"}]
["D",null,null,null,null,null,null,null,null,{"$f":"menu!C43","v":"ENSALADA CHEFF CON POLLITO"}]
["E",null,null,null,null,null,null,null,null,{"$f":"menu!C44","v":"PIERNITAS AL SILLAO CON ARROZ PRIMAVERA"}]
["V",null,null,null,null,null,null,null,null,{"$f":"menu!C45","v":"ARVEJITAS PARTIDAS CON HUEVITO AL GRILL Y ARROZ"}]
["postre",null,null,null,null,null,null,null,null,{"$f":"menu!C46","v":"GELATINA DE COLORES"}]
["refresco",null,null,null,null,null,null,null,null,{"$f":"menu!C47","v":"NARANJADA"}]
[]
["Opción",{"$f":"menu!A48","v":"4 de Abril"},null,{"$f":"menu!A57","v":"5 de Abril"},null,{"$f":"menu!A66","v":"6 de Abril"},null,{"$f":"menu!A75","v":"7 de Abril"},null,{"$f":"menu!A84","v":"8 de Abril"}]
[]
["Entrada",{"$f":"menu!C48","v":"ENSALADA DE PEPINO   "},null,{"$f":"menu!C57","v":"ENSALADA DE COL"},null,{"$f":"menu!C66","v":"PAPITA A LA HUANCAINA"},null,{"$f":"menu!C75","v":"ENSALADA FRESCA"},null,{"$f":"menu!C84","v":"HUEVITO RELLENO"}]
["A",{"$f":"menu!C49","v":"CAUCAU DE POLLO CON ARROZ"},null,{"$f":"menu!C58","v":"SECO DE RES CON ARROZ"},null,{"$f":"menu!C67","v":"ARROZ CON POLLO "},null,{"$f":"menu!C76","v":"POLLO A LA PARRILLA CON ARROZ CON VERDURAS"},null,{"$f":"menu!C85","v":"ESTOFADO DE POLLO CON ARROZ "}]
["B",{"$f":"menu!C50","v":"GUISO DE RES CON ARROZ"},null,{"$f":"menu!C59","v":"POLLO AL HORNO CON PURÉ DE PAPITA AMARILLA"},null,{"$f":"menu!C68","v":"QUINUA GUISADA CON QUESITO Y BRÓCOLI"},null,{"$f":"menu!C77","v":"LOMO SALTADO CON ARROZ"},null,{"$f":"menu!C86","v":"BISTECK AL PLATO CON ARROZ"}]
["C",{"$f":"menu!C51","v":"POLLO A LA PLANCHA CON PURÉ DE ESPINACAS"},null,{"$f":"menu!C60","v":"POLLO A LA PLANCHA CON PAPA SANCOCHADA Y VERDURAS"},null,{"$f":"menu!C69","v":"POLLO A LA PLANCHA CON VERDURAS Y ARROZ"},null,{"$f":"menu!C78","v":"POLLO A LA PLANCHA CON ARROZ A LA JARDINERA"},null,{"$f":"menu!C87","v":"POLLO A LA PLANCHA CON PURÉ ROSADO Y ARROZ"}]
["D",{"$f":"menu!C52","v":"ENSALADA CÉSAR CON POLLITO A LA PLANCHA"},null,{"$f":"menu!C61","v":"ENSALADA CRIOLLA CON POLLITO A LA PLANCHA"},null,{"$f":"menu!C70","v":"ENSALADA WALDORFF CON PAVITO AL HORNO"},null,{"$f":"menu!C79","v":"ENSALADA RUSA CON MEDALLONES DE PAVITA"},null,{"$f":"menu!C88","v":"ENSALADA ORIENTAL CON POLLITO EN SALSA CHI JAU KAY"}]
["E",{"$f":"menu!C53","v":"LENTEJITAS GUISADAS CON NUGGETS AL HORNO"},null,{"$f":"menu!C62","v":"MACARRONES CON QUESO Y DADOS DE POLLO"},null,{"$f":"menu!C71","v":"PIZZA CLÁSICA ARTESANAL CON POLLITO Y ENSALADA"},null,{"$f":"menu!C80","v":"CHICKEN FINGERS CON PAPITAS"},null,{"$f":"menu!C89","v":"DEDITOS DE PESCADO CON YUCA AL HORNO/SALSA TÁRTARA"}]
["V",{"$f":"menu!C54","v":"TORTILLA DE VEGETALES CON ARROZ"},null,{"$f":"menu!C63","v":"FILETE DE GLUTEN CON CHAMPIGNONES Y ARROZ"},null,{"$f":"menu!C72","v":"SALTADO DE BRÓCOLI VEGETARIANO CON ARROZ"},null,{"$f":"menu!C81","v":"CAUSA VEGETARIANA CON VERDURAS"},null,{"$f":"menu!C90","v":"SALTADO DE SOYA CON ARROZ "}]
["postre",{"$f":"menu!C55","v":"FRUTA DE ESTACIÓN"},null,{"$f":"menu!C64","v":"PYE DE MANZANA   "},null,{"$f":"menu!C73","v":"GELATINA"},null,{"$f":"menu!C82","v":"GALLETAS NATURALES DE AJONJOLÍ"},null,{"$f":"menu!C91","v":"MUFFIN DE FRUTAS"}]
["refresco",{"$f":"menu!C56","v":"LIMONADA"},null,{"$f":"menu!C65","v":"CHICHA MORADA"},null,{"$f":"menu!C74","v":"NARANJADA"},null,{"$f":"menu!C83","v":"MARACUYÁ"},null,{"$f":"menu!C92","v":"LIMONADA"}]
[]
["Opción",{"$f":"menu!A93","v":"11 de Abril"},null,{"$f":"menu!A102","v":"12 de Abril"},null,{"$f":"menu!A111","v":"13 de Abril"},null,{"$f":"menu!A120","v":"14 de Abril"},null,{"$f":"menu!A129","v":"15 de Abril"}]
[]
["Entrada",{"$f":"menu!C93","v":"CHOCLITO CON QUESO"},null,{"$f":"menu!C102","v":"ENSALADA BRUSCHETTA"},null,{"$f":"menu!C111","v":"SOUFFLÉ DE VERDURAS"},null,{"$f":"menu!C120","v":"SALPICON DE VERDURAS"},null,{"$f":"menu!C129","v":"TEQUEÑOS CON GUACAMOLE "}]
["A",{"$f":"menu!C94","v":"POLLO AL SILLAO CON ARROZ"},null,{"$f":"menu!C103","v":"PAPA RELLENA / VERDURAS SALTEADAS"},null,{"$f":"menu!C112","v":"MILANESA DE POLLO CON VERDURAS Y ARROZ"},null,{"$f":"menu!C121","v":"POLLO A LA OLLA CON ARROZ"},null,{"$f":"menu!C130","v":"VAINITAS SALTEADAS CON RES Y ARROZ"}]
["B",{"$f":"menu!C95","v":"COLIFLOR SALTADA CON RES Y ARROZ"},null,{"$f":"menu!C104","v":"CARAPULCRA GUISADA CON POLLO CON ARROZ"},null,{"$f":"menu!C113","v":"POLLO AL HORNO CON ENSALADA RUSA"},null,{"$f":"menu!C122","v":"FRIJOLES GUISADOS CON CERDO Y ARROZ PRIMAVERA"},null,{"$f":"menu!C131","v":"POLLO A LA REINA CON ARROZ"}]
["C",{"$f":"menu!C96","v":"POLLO A LA PLANCHA CON VERDURAS Y ARROZ"},null,{"$f":"menu!C105","v":"POLLO A LA PLANCHA CON ARROZ A LA JARDINERA"},null,{"$f":"menu!C114","v":"POLLO A LA PLANCHA CON PAPITAS"},null,{"$f":"menu!C123","v":"POLLO A LA PLANCHA CON PAPA SANCOCHADA Y VERDURAS"},null,{"$f":"menu!C132","v":"POLLO A LA PLANCHA CON VERDURAS Y ARROZ"}]
["D",{"$f":"menu!C97","v":"ENSALADA DE BRÓCOLI PESCADO A LA PLANCHA"},null,{"$f":"menu!C106","v":"PALTA RELLENA CON VERDURAS Y POLLITO"},null,{"$f":"menu!C115","v":"ENSALADA DE QUINOA CON POLLITO EN DADOS"},null,{"$f":"menu!C124","v":"ENSALADA DE GARBANZOS CON ATÚN "},null,{"$f":"menu!C133","v":"ENSALADA DELICIA CON PAVO"}]
["E",{"$f":"menu!C98","v":"POLLO AL HORNO CON CAMOTE GLASEADO"},null,{"$f":"menu!C107","v":"MILANESA DE PESCADO CON PURÉ DE PAPA"},null,{"$f":"menu!C116","v":"PIZZADILLA DE JAMÓN Y QUESO CON NACHOS Y ENSALADA "},null,{"$f":"menu!C125","v":"CHICKEN FINGERS CON PAPITAS AL ROMERO"},null,{"$f":"menu!C134","v":"MILANESA DE PESCADO CON ARROZ PRIMAVERA"}]
["V",{"$f":"menu!C99","v":"ARROZ CHAUFA VEGETARIANO"},null,{"$f":"menu!C108","v":"FIDEOS EN SALSA DE ALBAHACA"},null,{"$f":"menu!C117","v":"CEVICHE VEGETARIANO"},null,{"$f":"menu!C126","v":"CAIHUA VEGETARIANA CON ARROZ"},null,{"$f":"menu!C135","v":"ARROZ A LA JARDINERA CON SALTADO DE SOYA"}]
["postre",{"$f":"menu!C100","v":"DELICIA DE FRUTAS"},null,{"$f":"menu!C109","v":"BOMBITAS HAPPY LUNCHES    "},null,{"$f":"menu!C118","v":"ARROZ CON LECHE"},null,{"$f":"menu!C127","v":"CARLOTA DE FRUTAS"},null,{"$f":"menu!C136","v":"FRUTA DE ESTACIÓN"}]
["refresco",{"$f":"menu!C101","v":"CARAMBOLA"},null,{"$f":"menu!C110","v":"CHICHA MORADA"},null,{"$f":"menu!C119","v":"NARANJADA"},null,{"$f":"menu!C128","v":"LIMONADA"},null,{"$f":"menu!C137","v":"MARACUYÁ"}]
[]
["Opción",{"$f":"menu!A138","v":"18 de Abril"},null,{"$f":"menu!A147","v":"19 de Abril"},null,{"$f":"menu!A156","v":"20 de Abril"},null,{"$f":"menu!A165","v":"21 de Abril"},null,{"$f":"menu!A174","v":"22 de Abril"}]
[]
["Entrada",{"$f":"menu!C138","v":"ENSALADA PARRILLERA"},null,{"$f":"menu!C147","v":"PAPITAS CON CREMAS DE PIMIENTO"},null,{"$f":"menu!C156","v":"ENSALADA DE TOMATE"},null,{"$f":"menu!C165","v":"ENSALADA DE PALTA"},null,{"$f":"menu!C174","v":"ENSALADA DE COL"}]
["A",{"$f":"menu!C139","v":"SECO DE CARNE CON ARROZ"},null,{"$f":"menu!C148","v":"TRIGO GUISADO /SALTADITO DE POLLO Y ARROZ "},null,{"$f":"menu!C157","v":"POLLITO ANTICUCHADO CON ARROZ"},null,{"$f":"menu!C166","v":"GUISO DE CARNE CON ARROZ"},null,{"$f":"menu!C175","v":"MILANESA DE PESCADO CON YUCAS DORADAS"}]
["B",{"$f":"menu!C140","v":"ARROZ CHAUFA CON POLLO CON PIÑA"},null,{"$f":"menu!C149","v":"POLLO A LA COCA COLA CON ARROZ"},null,{"$f":"menu!C158","v":"SPAGHETTI AL PESTO CON BISTECK"},null,{"$f":"menu!C167","v":"POLLO A LA MOSTAZA CON ARROZ"},null,{"$f":"menu!C176","v":"CAIHUA RELLENA CON RES Y ARROZ"}]
["C",{"$f":"menu!C141","v":"POLLO A LA PLANCHA CON PURÉ DE ESPINACAS"},null,{"$f":"menu!C150","v":"POLLO A LA PLANCHA CON PAPA SANCOCHADA"},null,{"$f":"menu!C159","v":"POLLO A LA PLANCHA CON PAPITAS"},null,{"$f":"menu!C168","v":"POLLO A LA PLANCHA CON ARROZ PRIMAVERA"},null,{"$f":"menu!C177","v":"POLLO A LA PLANCHA CON PURÉ DE PAPITA AMARILLA"}]
["D",{"$f":"menu!C142","v":"ZUCCHINI CON POLLITO A LA PLANCHA"},null,{"$f":"menu!C151","v":"ENSALADA CÉSAR CON POLLITO A LA PLANCHA"},null,{"$f":"menu!C160","v":"ENSALADA DE COL CON POLLO A LA PLANCHA"},null,{"$f":"menu!C169","v":"ENSALADA FRESCA CON POLLO A LA PARRILLA"},null,{"$f":"menu!C178","v":"ENSALADA DE FIDEOS CON POLLITO A LA PLANCHA"}]
["E",{"$f":"menu!C143","v":"POLLO A LA PARRILLA CON PAPAS A LA GRIEGA"},null,{"$f":"menu!C152","v":"SPAGHETTI A LO ALFREDO CON POLLITO EN DADOS"},null,{"$f":"menu!C161","v":"HAMBURGUESA DE CARNE(CON PAN)/ENSALADA FRESCA"},null,{"$f":"menu!C170","v":"TORTILLAS DE ATÚN CON ARROZ PRIMAVERA"},null,{"$f":"menu!C179","v":"PIERNITAS CON YUQUITAS AL HORNO"}]
["V",{"$f":"menu!C144","v":"HAMBURGUESA VEGETARIANA CON ARROZ Y VERDURAS"},null,{"$f":"menu!C153","v":"GLUTEN CON SALSA DE CHAMPIGNONES Y ARROZ"},null,{"$f":"menu!C162","v":"LASAGNA VEGETARIANA"},null,{"$f":"menu!C171","v":"SALTADO DE COLIFLOR CON ARROZ"},null,{"$f":"menu!C180","v":"PAPA RELLENA VEGETARIANA "}]
["postre",{"$f":"menu!C145","v":"PYE DE MANZANA"},null,{"$f":"menu!C154","v":"GELATINA CON FRUTA"},null,{"$f":"menu!C163","v":"GELATINA "},null,{"$f":"menu!C172","v":"GALLETAS NATURALES DE KIWICHA"},null,{"$f":"menu!C181","v":"FLAN"}]
["refresco",{"$f":"menu!C146","v":"AGUA MINERAL"},null,{"$f":"menu!C155","v":"CHICHA MORADA"},null,{"$f":"menu!C164","v":"CEBADA"},null,{"$f":"menu!C173","v":"NARANJADA"},null,{"$f":"menu!C182","v":"LIMONADA"}]
[]
["Opción",{"$f":"menu!A183","v":"25 de Abril"},null,{"$f":"menu!A192","v":"26 de Abril"},null,{"$f":"menu!A201","v":"27 de Abril"},null,{"$f":"menu!A210","v":"28 de Abril"},null,"29 DE ABRIL"]
[]
["Entrada",{"$f":"menu!C183","v":"ENSALADA DE ESPINACA"},null,{"$f":"menu!C192","v":"PAN AL AJO  "},null,{"$f":"menu!C201","v":"ENSALADA DE PALTA"},null,{"$f":"menu!C210","v":"ENSALADA DE PEPINO"},null,{"$f":"menu!C219","v":"ENSALADA MIXTA"}]
["A",{"$f":"menu!C184","v":"AJÍ DE GALLINA "},null,{"$f":"menu!C193","v":"LASAGNA A LA BOLOGNESA"},null,{"$f":"menu!C202","v":"POLLITO ANTICUCHADO CON ARROZ CON CHOCLO"},null,{"$f":"menu!C211","v":"POLLO AL SILLAO CON ARROZ"},null,{"$f":"menu!C220","v":"POLLO A LA NARANJA CON ARROZ"}]
["B",{"$f":"menu!C185","v":"PURÉ DE ESPINACAS CON ASADO"},null,{"$f":"menu!C194","v":"ARROZ A LA JARDINERA CON GUISO DE CARNE"},null,{"$f":"menu!C203","v":"FRIJOLES ROJOS BATIDOS CON GUISO DE POLLO"},null,{"$f":"menu!C212","v":"CERDO AL HORNO CON CAMOTE GLASEADO"},null,{"$f":"menu!C221","v":"LOCRO DE ZAPALLO CON POLLITO Y ARROZ  "}]
["C",{"$f":"menu!C186","v":"POLLO A LA PLANCHA CON PAPITAS Y ARROZ"},null,{"$f":"menu!C195","v":"POLLO A LA PLANCHA CON VERDURAS Y ARROZ"},null,{"$f":"menu!C204","v":"POLLO A LA PLANCHA CON ARROZ PRIMAVERA"},null,{"$f":"menu!C213","v":"POLLO A LA PLANCHA CON PAPAS DORADAS"},null,{"$f":"menu!C222","v":"POLLO A LA PLANCHA CON VERDURAS Y ARROZ"}]
["D",{"$f":"menu!C187","v":"ENSALADA DE ESPINACA CON PAVITO AL HORNO"},null,{"$f":"menu!C196","v":"CAUSA RELLENA DE POLLO Y VERDURAS"},null,{"$f":"menu!C205","v":"ENSALADA DELICIA CON POLLITO "},null,{"$f":"menu!C214","v":"WRAP DE POLLO Y PALTA"},null,{"$f":"menu!C223","v":"ENSALADA CRIOLLA CON POLLO AL GRILL"}]
["E",{"$f":"menu!C188","v":"PIZZA ARTESANAL CON POLLITO / ENSALADA "},null,{"$f":"menu!C197","v":"PECHUGUITAS DE POLLO CON PURÉ ROSADO"},null,{"$f":"menu!C206","v":"POLLITO BBQ CON PAPITAS"},null,{"$f":"menu!C215","v":"ARROZ CHAUFA CON POLLO CHI JAU KAY"},null,{"$f":"menu!C224","v":"BISTECK CON PAPITAS AL ROMERO"}]
["V",{"$f":"menu!C189","v":"CAUCAU VEGETARIANO CON ARROZ"},null,{"$f":"menu!C198","v":"CEVICHE DE CHAMPIGNONES"},null,{"$f":"menu!C207","v":"SALTADO DE CHOCLO VEGETARIANO"},null,{"$f":"menu!C216","v":"TORTILLA DE ESPINACAS Y SOYA CON ARROZ"},null,{"$f":"menu!C225","v":"FILETE DE GLUTEN CON SALSA DE ESPINACAS Y ARROZ"}]
["postre",{"$f":"menu!C190","v":"FRUTA DE ESTACIÓN"},null,{"$f":"menu!C199","v":"FLAN "},null,{"$f":"menu!C208","v":"CARLOTA DE FRESA"},null,{"$f":"menu!C217","v":"PIONONITO"},null,{"$f":"menu!C226","v":"FRUTA DE ESTACIÓN"}]
["refresco",{"$f":"menu!C191","v":"AGUA MINERAL"},null,{"$f":"menu!C200","v":"CHICHA MORADA"},null,{"$f":"menu!C209","v":"LIMONADA"},null,{"$f":"menu!C218","v":"MARACUYÁ"},null,{"$f":"menu!C227","v":"NARANJADA"}]
[]
[null,null,null,null,null,null,null,"Limpiar  Pedidos"]

{"sheet":"Resumen","index":1,"n_rows":27,"n_cols":36,"rows_kept":27,"cut":false,"hidden":false,"merged":[[27,11,28,29],[22,0,22,29],[23,0,23,29],[26,0,26,29],[24,11,25,29],[15,1,15,29],[16,1,16,29],[0,0,1,0],[0,1,1,29],[6,0,8,27],[11,0,14,29],[10,0,10,29]]}
[null,"No se aceptarán nuevos pedidos ni cambios de opción con menos de 03 días (72 horas) de anticipación, excepto dietas por enfermedad"]
[]
["NOMBRES Y APELLIDOS","SECCION Y GRADO",{"$f":"menu!A3","v":0},{"$f":"menu!A12","v":0},{"$f":"menu!A21","v":0},{"$f":"menu!A30","v":0},{"$f":"menu!A39","v":"1 de Abril"},{"$f":"menu!A48","v":"4 de Abril"},{"$f":"menu!A57","v":"5 de Abril"},{"$f":"menu!A66","v":"6 de Abril"},{"$f":"menu!A75","v":"7 de Abril"},{"$f":"menu!A84","v":"8 de Abril"},{"$f":"menu!A93","v":"11 de Abril"},{"$f":"menu!A102","v":"12 de Abril"},{"$f":"menu!A111","v":"13 de Abril"},{"$f":"menu!A120","v":"14 de Abril"},{"$f":"menu!A129","v":"15 de Abril"},{"$f":"menu!A138","v":"18 de Abril"},{"$f":"menu!A147","v":"19 de Abril"},{"$f":"menu!A156","v":"20 de Abril"},{"$f":"menu!A165","v":"21 de Abril"},{"$f":"menu!A174","v":"22 de Abril"},{"$f":"menu!A183","v":"25 de Abril"},{"$f":"menu!A192","v":"26 de Abril"},{"$f":"menu!A201","v":"27 de Abril"},{"$f":"menu!A210","v":"28 de Abril"},{"$f":"menu!A219","v":"29 de Abril"},"Número de Almuerzos","COSTO DIARIO ","Total Soles"]
["PEDIDO ALU2"]
["PEDIDO ALU1"]
[{"$f":"CONCATENATE(FORMATOPEDIDO2.0!D9,\"  \",FORMATOPEDIDO2.0!D10)","v":"  "},{"$f":"FORMATOPEDIDO2.0!$I$9","v":0},{"$f":"IF(C5=1,\"A\",IF(C5=2,\"B\",IF(C5=3,\"C\",IF(C5=4,\"D\",IF(C5=5,\"E\",IF(C5=6,\"V\",\"\"))))))","v":""},{"$f":"IF(D5=1,\"A\",IF(D5=2,\"B\",IF(D5=3,\"C\",IF(D5=4,\"D\",IF(D5=5,\"E\",IF(D5=6,\"V\",\"\"))))))","v":""},"","","","","","","","","","","","","","","","","","","","","","","",{"$f":"COUNTA(C5:AA5)","v":0},11.5,{"$f":"AB6*AC6","v":0},{"$f":"COUNTIF(C6:Z6,\"a\")","v":0},{"$f":"COUNTIF(C6:Z6,\"z\")","v":0},{"$f":"COUNTIF(C6:Z6,\"b\")","v":0},{"$f":"COUNTIF(C6:Z6,\"c\")","v":0},{"$f":"COUNTIF(C6:Z6,\"d\")","v":0},{"$f":"COUNTIF(C6:Z6,\"e\")","v":0}]
["RECUERDE QUE DESPUES DE ENVIAR SU PEDIDO (E-MAIL) TIENE 05 DIAS UTILES PARA ENVIARNOS SU VOUCHER O TRANSFERENCIA DE PAGO MEDIANTE E-MAIL.\nLA MORA SE COBRA SOLO  DESPUES DEL 5TO DIA DE SERVICIO  EN CASO USTED NO REALICE EL ABONO.",null,null,null,null,null,null,null,null,null,null,null,null,null,null,null,null,null,null,null,null,null,null,null,null,null,null,null,"TOTAL ",{"$f":"SUM(AD6:AD6)","v":0}]
[null,null,null,null,null,null,null,null,null,null,null,null,null,null,null,null,null,null,null,null,null,null,null,null,null,null,null,null,null,{"$f":"12","v":12}]
[null,null,null,null,null,null,null,null,null,null,null,null,null,null,null,null,null,null,null,null,null,null,null,null,null,null,null,null,"PAGO CON MORA "]
[]
["RESUMEN DE PEDIDO TOTAL:"]
["          CORREO ELECTRÓNICO:\n lunch-sm@happylunchesservice.com"]
[]
[]
[]
[]
[]
[]
[]
[]
[]
[]
["HORARIO DE ATENCIÓN AL CLIENTE: TELÉFONOS FIJOS - LUNES A VIERNES DE 7AM - 4PM    CELULARES: 7AM - 4PM"]
["Teléfonos:  445-8009  ó  250-8990         Maite Valdivia: 967759206"]
[]
[]
["Encuentre el menú en :    www.happylunchesservice.com"]

{"sheet":"menu","index":2,"n_rows":227,"n_cols":3,"rows_kept":227,"cut":false,"hidden":true,"merged":[[218,0,226,0],[191,0,199,0],[200,0,208,0],[209,0,217,0],[173,0,181,0],[182,0,190,0],[128,0,136,0],[137,0,145,0],[146,0,154,0],[155,0,163,0],[164,0,172,0],[83,0,91,0],[92,0,100,0],[101,0,109,0],[110,0,118,0],[119,0,127,0],[38,0,46,0],[47,0,55,0],[56,0,64,0],[65,0,73,0],[74,0,82,0],[0,0,0,2],[2,0,10,0],[11,0,19,0],[20,0,28,0],[29,0,37,0]]}
["Desde esta hoja de cálculo se ingresan los pedidos mensuales para que se actulicen los calendarios NO SE MUESTRA A LOS CLIENTES\n*SOLO SE CAMBIA DÍA Y MENU"]
["DIAS","OPCIONES"]
[null,"Entrada"]
[null,"A"]
[null,"B"]
[null,"C"]
[null,"D"]
[null,"E"]
[null,"V"]
[null,"postre"]
[null,"refresco"]
[null,"Entrada"]
[null,"A"]
[null,"B"]
[null,"C"]
[null,"D"]
[null,"E"]
[null,"V"]
[null,"postre"]
[null,"refresco"]
[null,"Entrada"]
[null,"A"]
[null,"B"]
[null,"C"]
[null,"D"]
[null,"E"]
[null,"V"]
[null,"postre"]
[null,"refresco"]
[null,"Entrada"]
[null,"A"]
[null,"B"]
[null,"C"]
[null,"D"]
[null,"E"]
[null,"V"]
[null,"postre"]
[null,"refresco"]
["1 de Abril","Entrada","WANTAN CON TAMARINDO "]
[null,"A","ARROZ CHAUFA DE POLLO"]
[null,"B","HAMBURGUESA AL PLATO CON ARROZ PRIMAVERA"]
[null,"C","POLLO A LA PLANCHA CON ARROZ PRIMAVERA"]
[null,"D","ENSALADA CHEFF CON POLLITO"]
[null,"E","PIERNITAS AL SILLAO CON ARROZ PRIMAVERA"]
[null,"V","ARVEJITAS PARTIDAS CON HUEVITO AL GRILL Y ARROZ"]
[null,"postre","GELATINA DE COLORES"]
[null,"refresco","NARANJADA"]
["4 de Abril","Entrada","ENSALADA DE PEPINO   "]
[null,"A","CAUCAU DE POLLO CON ARROZ"]
[null,"B","GUISO DE RES CON ARROZ"]
[null,"C","POLLO A LA PLANCHA CON PURÉ DE ESPINACAS"]
[null,"D","ENSALADA CÉSAR CON POLLITO A LA PLANCHA"]
[null,"E","LENTEJITAS GUISADAS CON NUGGETS AL HORNO"]
[null,"V","TORTILLA DE VEGETALES CON ARROZ"]
[null,"postre","FRUTA DE ESTACIÓN"]
[null,"refresco","LIMONADA"]
["5 de Abril","Entrada","ENSALADA DE COL"]
[null,"A","SECO DE RES CON ARROZ"]
[null,"B","POLLO AL HORNO CON PURÉ DE PAPITA AMARILLA"]
[null,"C","POLLO A LA PLANCHA CON PAPA SANCOCHADA Y VERDURAS"]
[null,"D","ENSALADA CRIOLLA CON POLLITO A LA PLANCHA"]
[null,"E","MACARRONES CON QUESO Y DADOS DE POLLO"]
[null,"V","FILETE DE GLUTEN CON CHAMPIGNONES Y ARROZ"]
[null,"postre","PYE DE MANZANA   "]
[null,"refresco","CHICHA MORADA"]
["6 de Abril","Entrada","PAPITA A LA HUANCAINA"]
[null,"A","ARROZ CON POLLO "]
[null,"B","QUINUA GUISADA CON QUESITO Y BRÓCOLI"]
[null,"C","POLLO A LA PLANCHA CON VERDURAS Y ARROZ"]
[null,"D","ENSALADA WALDORFF CON PAVITO AL HORNO"]
[null,"E","PIZZA CLÁSICA ARTESANAL CON POLLITO Y ENSALADA"]
[null,"V","SALTADO DE BRÓCOLI VEGETARIANO CON ARROZ"]
[null,"postre","GELATINA"]
[null,"refresco","NARANJADA"]
["7 de Abril","Entrada","ENSALADA FRESCA"]
[null,"A","POLLO A LA PARRILLA CON ARROZ CON VERDURAS"]
[null,"B","LOMO SALTADO CON ARROZ"]
[null,"C","POLLO A LA PLANCHA CON ARROZ A LA JARDINERA"]
[null,"D","ENSALADA RUSA CON MEDALLONES DE PAVITA"]
[null,"E","CHICKEN FINGERS CON PAPITAS"]
[null,"V","CAUSA VEGETARIANA CON VERDURAS"]
[null,"postre","GALLETAS NATURALES DE AJONJOLÍ"]
[null,"refresco","MARACUYÁ"]
["8 de Abril","Entrada","HUEVITO RELLENO"]
[null,"A","ESTOFADO DE POLLO CON ARROZ "]
[null,"B","BISTECK AL PLATO CON ARROZ"]
[null,"C","POLLO A LA PLANCHA CON PURÉ ROSADO Y ARROZ"]
[null,"D","ENSALADA ORIENTAL CON POLLITO EN SALSA CHI JAU KAY"]
[null,"E","DEDITOS DE PESCADO CON YUCA AL HORNO/SALSA TÁRTARA"]
[null,"V","SALTADO DE SOYA CON ARROZ "]
[null,"postre","MUFFIN DE FRUTAS"]
[null,"refresco","LIMONADA"]
["11 de Abril","Entrada","CHOCLITO CON QUESO"]
[null,"A","POLLO AL SILLAO CON ARROZ"]
[null,"B","COLIFLOR SALTADA CON RES Y ARROZ"]
[null,"C","POLLO A LA PLANCHA CON VERDURAS Y ARROZ"]
[null,"D","ENSALADA DE BRÓCOLI PESCADO A LA PLANCHA"]
[null,"E","POLLO AL HORNO CON CAMOTE GLASEADO"]
[null,"V","ARROZ CHAUFA VEGETARIANO"]
[null,"postre","DELICIA DE FRUTAS"]
[null,"refresco","CARAMBOLA"]
["12 de Abril","Entrada","ENSALADA BRUSCHETTA"]
[null,"A","PAPA RELLENA / VERDURAS SALTEADAS"]
[null,"B","CARAPULCRA GUISADA CON POLLO CON ARROZ"]
[null,"C","POLLO A LA PLANCHA CON ARROZ A LA JARDINERA"]
[null,"D","PALTA RELLENA CON VERDURAS Y POLLITO"]
[null,"E","MILANESA DE PESCADO CON PURÉ DE PAPA"]
[null,"V","FIDEOS EN SALSA DE ALBAHACA"]
[null,"postre","BOMBITAS HAPPY LUNCHES    "]
[null,"refresco","CHICHA MORADA"]
["13 de Abril","Entrada","SOUFFLÉ DE VERDURAS"]
[null,"A","MILANESA DE POLLO CON VERDURAS Y ARROZ"]
[null,"B","POLLO AL HORNO CON ENSALADA RUSA"]
[null,"C","POLLO A LA PLANCHA CON PAPITAS"]
[null,"D","ENSALADA DE QUINOA CON POLLITO EN DADOS"]
[null,"E","PIZZADILLA DE JAMÓN Y QUESO CON NACHOS Y ENSALADA "]
[null,"V","CEVICHE VEGETARIANO"]
[null,"postre","ARROZ CON LECHE"]
[null,"refresco","NARANJADA"]
["14 de Abril","Entrada","SALPICON DE VERDURAS"]
[null,"A","POLLO A LA OLLA CON ARROZ"]
[null,"B","FRIJOLES GUISADOS CON CERDO Y ARROZ PRIMAVERA"]
[null,"C","POLLO A LA PLANCHA CON PAPA SANCOCHADA Y VERDURAS"]
[null,"D","ENSALADA DE GARBANZOS CON ATÚN "]
[null,"E","CHICKEN FINGERS CON PAPITAS AL ROMERO"]
[null,"V","CAIHUA VEGETARIANA CON ARROZ"]
[null,"postre","CARLOTA DE FRUTAS"]
[null,"refresco","LIMONADA"]
["15 de Abril","Entrada","TEQUEÑOS CON GUACAMOLE "]
[null,"A","VAINITAS SALTEADAS CON RES Y ARROZ"]
[null,"B","POLLO A LA REINA CON ARROZ"]
[null,"C","POLLO A LA PLANCHA CON VERDURAS Y ARROZ"]
[null,"D","ENSALADA DELICIA CON PAVO"]
[null,"E","MILANESA DE PESCADO CON ARROZ PRIMAVERA"]
[null,"V","ARROZ A LA JARDINERA CON SALTADO DE SOYA"]
[null,"postre","FRUTA DE ESTACIÓN"]
[null,"refresco","MARACUYÁ"]
["18 de Abril","Entrada","ENSALADA PARRILLERA"]
[null,"A","SECO DE CARNE CON ARROZ"]
[null,"B","ARROZ CHAUFA CON POLLO CON PIÑA"]
[null,"C","POLLO A LA PLANCHA CON PURÉ DE ESPINACAS"]
[null,"D","ZUCCHINI CON POLLITO A LA PLANCHA"]
[null,"E","POLLO A LA PARRILLA CON PAPAS A LA GRIEGA"]
[null,"V","HAMBURGUESA VEGETARIANA CON ARROZ Y VERDURAS"]
[null,"postre","PYE DE MANZANA"]
[null,"refresco","AGUA MINERAL"]
["19 de Abril","Entrada","PAPITAS CON CREMAS DE PIMIENTO"]
[null,"A","TRIGO GUISADO /SALTADITO DE POLLO Y ARROZ "]
[null,"B","POLLO A LA COCA COLA CON ARROZ"]
[null,"C","POLLO A LA PLANCHA CON PAPA SANCOCHADA"]
[null,"D","ENSALADA CÉSAR CON POLLITO A LA PLANCHA"]
[null,"E","SPAGHETTI A LO ALFREDO CON POLLITO EN DADOS"]
[null,"V","GLUTEN CON SALSA DE CHAMPIGNONES Y ARROZ"]
[null,"postre","GELATINA CON FRUTA"]
[null,"refresco","CHICHA MORADA"]
["20 de Abril","Entrada","ENSALADA DE TOMATE"]
[null,"A","POLLITO ANTICUCHADO CON ARROZ"]
[null,"B","SPAGHETTI AL PESTO CON BISTECK"]
[null,"C","POLLO A LA PLANCHA CON PAPITAS"]
[null,"D","ENSALADA DE COL CON POLLO A LA PLANCHA"]
[null,"E","HAMBURGUESA DE CARNE(CON PAN)/ENSALADA FRESCA"]
[null,"V","LASAGNA VEGETARIANA"]
[null,"postre","GELATINA "]
[null,"refresco","CEBADA"]
["21 de Abril","Entrada","ENSALADA DE PALTA"]
[null,"A","GUISO DE CARNE CON ARROZ"]
[null,"B","POLLO A LA MOSTAZA CON ARROZ"]
[null,"C","POLLO A LA PLANCHA CON ARROZ PRIMAVERA"]
[null,"D","ENSALADA FRESCA CON POLLO A LA PARRILLA"]
[null,"E","TORTILLAS DE ATÚN CON ARROZ PRIMAVERA"]
[null,"V","SALTADO DE COLIFLOR CON ARROZ"]
[null,"postre","GALLETAS NATURALES DE KIWICHA"]
[null,"refresco","NARANJADA"]
["22 de Abril","Entrada","ENSALADA DE COL"]
[null,"A","MILANESA DE PESCADO CON YUCAS DORADAS"]
[null,"B","CAIHUA RELLENA CON RES Y ARROZ"]
[null,"C","POLLO A LA PLANCHA CON PURÉ DE PAPITA AMARILLA"]
[null,"D","ENSALADA DE FIDEOS CON POLLITO A LA PLANCHA"]
[null,"E","PIERNITAS CON YUQUITAS AL HORNO"]
[null,"V","PAPA RELLENA VEGETARIANA "]
[null,"postre","FLAN"]
[null,"refresco","LIMONADA"]
["25 de Abril","Entrada","ENSALADA DE ESPINACA"]
[null,"A","AJÍ DE GALLINA "]
[null,"B","PURÉ DE ESPINACAS CON ASADO"]
[null,"C","POLLO A LA PLANCHA CON PAPITAS Y ARROZ"]
[null,"D","ENSALADA DE ESPINACA CON PAVITO AL HORNO"]
[null,"E","PIZZA ARTESANAL CON POLLITO / ENSALADA "]
[null,"V","CAUCAU VEGETARIANO CON ARROZ"]
[null,"postre","FRUTA DE ESTACIÓN"]
[null,"refresco","AGUA MINERAL"]
["26 de Abril","Entrada","PAN AL AJO  "]
[null,"A","LASAGNA A LA BOLOGNESA"]
[null,"B","ARROZ A LA JARDINERA CON GUISO DE CARNE"]
[null,"C","POLLO A LA PLANCHA CON VERDURAS Y ARROZ"]
[null,"D","CAUSA RELLENA DE POLLO Y VERDURAS"]
[null,"E","PECHUGUITAS DE POLLO CON PURÉ ROSADO"]
[null,"V","CEVICHE DE CHAMPIGNONES"]
[null,"postre","FLAN "]
[null,"refresco","CHICHA MORADA"]
["27 de Abril","Entrada","ENSALADA DE PALTA"]
[null,"A","POLLITO ANTICUCHADO CON ARROZ CON CHOCLO"]
[null,"B","FRIJOLES ROJOS BATIDOS CON GUISO DE POLLO"]
[null,"C","POLLO A LA PLANCHA CON ARROZ PRIMAVERA"]
[null,"D","ENSALADA DELICIA CON POLLITO "]
[null,"E","POLLITO BBQ CON PAPITAS"]
[null,"V","SALTADO DE CHOCLO VEGETARIANO"]
[null,"postre","CARLOTA DE FRESA"]
[null,"refresco","LIMONADA"]
["28 de Abril","Entrada","ENSALADA DE PEPINO"]
[null,"A","POLLO AL SILLAO CON ARROZ"]
[null,"B","CERDO AL HORNO CON CAMOTE GLASEADO"]
[null,"C","POLLO A LA PLANCHA CON PAPAS DORADAS"]
[null,"D","WRAP DE POLLO Y PALTA"]
[null,"E","ARROZ CHAUFA CON POLLO CHI JAU KAY"]
[null,"V","TORTILLA DE ESPINACAS Y SOYA CON ARROZ"]
[null,"postre","PIONONITO"]
[null,"refresco","MARACUYÁ"]
["29 de Abril","Entrada","ENSALADA MIXTA"]
[null,"A","POLLO A LA NARANJA CON ARROZ"]
[null,"B","LOCRO DE ZAPALLO CON POLLITO Y ARROZ  "]
[null,"C","POLLO A LA PLANCHA CON VERDURAS Y ARROZ"]
[null,"D","ENSALADA CRIOLLA CON POLLO AL GRILL"]
[null,"E","BISTECK CON PAPITAS AL ROMERO"]
[null,"V","FILETE DE GLUTEN CON SALSA DE ESPINACAS Y ARROZ"]
[null,"postre","FRUTA DE ESTACIÓN"]
[null,"refresco","NARANJADA"]